[Event "RUS-chT Rapid Men 2018"]
[Site "Sochi"]
[Date "2018.10.09"]
[Round "8"]
[White "Okun, Evgeny"]
[Black "Popov, Maksim M."]
[Result "1-0"]
[ECO "A00"]
[WhiteElo "2163"]
[BlackElo "2219"]
[Annotator "NA"]
[PlyCount "93"]
[EventDate "2018.10.05"]
[EventType "swiss"]
[EventCountry "RUS"]
[SourceTitle "playchess.com"]
[Source "ChessBase"]
[SourceQuality "1"]
[TimeControl "900+10"]

1. g3 {[%emt 0:00:00]} Nf6 {[%emt 0:00:00]} 2. f4 {[%emt 0:00:00]} d5 {[%emt 0:00:01]} 3. Nf3 {[%emt 0:00:00]} c5 {[%emt 0:00:01]} 4. Bg2 {[%emt 0:00:00]} Nc6 {[%emt 0:00:01]} 5. d3 {[%emt 0:00:00]} g6 {[%emt 0:00:04]} 6. O-O {[%emt 0:00:01]} Bg7 {[%emt 0:00:04]} 7. Qe1 {[%emt 0:00:01]} d4 {[%emt 0:01:01]} 8. Na3 {[%emt 0:00:01]} O-O {[%emt 0:00:05]} 9. Bd2 {[%emt 0:00:01]} Rb8 {[%emt 0:00:37]} 10. c3 {[%emt 0:00:41]} Nd5 {[%emt 0:00:21]} 11. Rc1 {[%emt 0:00:01]} h6 {[%emt 0:01:13]} 12. h3 {[%emt 0:00:43]} Be6 {[%emt 0:00:43]} 13. Nh4 {[%emt 0:01:05]} Kh7 {[%emt 0:02:36]} 14. f5 {[%emt 0:00:27]} gxf5 {[%emt 0:00:03]} 15. Nxf5 {[%emt 0:00:09]} Bxf5 {[%emt 0:00:20]} 16. Rxf5 {[%emt 0:00:02]} e6 {[%emt 0:00:04]} 17. Rf1 {[%emt 0:00:15]} a6 {[%emt 0:02:25]} 18. Nc2 {[%emt 0:00:57]} Qd6 {[%emt 0:00:58]} 19. e4 {[%emt 0:00:35]} Nc7 {[%emt 0:00:40]} 20. c4 {[%emt 0:02:04]} Ne5 {[%emt 0:01:37]} 21. Qe2 {[%emt 0:00:09]} b5 {[%emt 0:00:43]} 22. cxb5 {[%emt 0:00:34]} axb5 {[%emt 0:00:32]} 23. Bf4 {[%emt 0:00:46]} c4 {[%emt 0:01:07]} 24. Ne1 {[%emt 0:00:18]} c3 {[%emt 0:00:25]} 25. bxc3 {[%emt 0:02:22]} dxc3 {[%emt 0:00:01]} 26. Qf2 Qb4 27. d4 {[%emt 0:01:00]} Ng6 {[%emt 0:01:38]} 28. Nc2 {[%emt 0:00:14]} Qe7 {[%emt 0:00:07]} 29. Be3 {[%emt 0:00:29]} b4 {[%emt 0:00:04]} 30. h4 {[%emt 0:00:12]} Qd7 {[%emt 0:00:52]} 31. h5 Ne7 32. Qe2 {[%emt 0:03:02]} Qb5 {[%emt 0:00:46]} 33. Qxb5 {[%emt 0:01:02]} Rxb5 {[%emt 0:00:03]} 34. g4 {[%emt 0:00:02]} Ra8 {[%emt 0:00:09]} 35. Rxf7 {[%emt 0:00:18]} Rxa2 {[%emt 0:00:22]} 36. Nxb4 {[%emt 0:01:19]} Rxb4 {[%emt 0:00:07]} 37. Rxe7 {[%emt 0:00:02]} Rbb2 {[%emt 0:00:15]} 38. Bf3 {[%emt 0:00:01]} Nb5 {[%emt 0:00:10]} 39. e5 {[%emt 0:00:22]} Kg8 {[%emt 0:00:24]} 40. Rxe6 {[%emt 0:00:14]} Rc2 {[%emt 0:00:01]} 41. Rxc2 {[%emt 0:00:24]} Rxc2 {[%emt 0:00:01]} 42. Be4 {[%emt 0:00:16]} Rb2 {[%emt 0:00:08]} 43. Re8+ {[%emt 0:00:04]} Bf8 {[%emt 0:00:02]} 44. Bxh6 {[%emt 0:00:11]} Kf7 {[%emt 0:00:00]} 45. Rxf8+ {[%emt 0:00:03]} Ke6 {[%emt 0:00:01]} 46. Rf6+ Ke7 47. Bg5 {[%emt 0:00:40]} 1-0

[Event "RUS-chT Rapid Men 2018"]
[Site "Sochi"]
[Date "2018.10.09"]
[Round "8"]
[White "Tatarintsev, Egor"]
[Black "Kostin, Alexey"]
[Result "0-1"]
[ECO "E10"]
[WhiteElo "2086"]
[BlackElo "2253"]
[Annotator "NA"]
[PlyCount "68"]
[EventDate "2018.10.05"]
[EventType "swiss"]
[EventCountry "RUS"]
[SourceTitle "playchess.com"]
[Source "ChessBase"]
[SourceQuality "1"]
[TimeControl "900+10"]

1. d4 {[%emt 0:00:00]} Nf6 {[%emt 0:00:00]} 2. c4 {[%emt 0:00:00]} e6 {[%emt 0:00:00]} 3. Nf3 {[%emt 0:00:00]} d5 {[%emt 0:00:00]} 4. g3 {[%emt 0:00:00]} c5 {[%emt 0:00:06]} 5. cxd5 {[%emt 0:00:19]} exd5 {[%emt 0:00:01]} 6. Bg2 {[%emt 0:00:09]} Nc6 {[%emt 0:00:03]} 7. O-O {[%emt 0:00:42]} Be7 {[%emt 0:00:11]} 8. Nc3 {[%emt 0:00:18]} Be6 {[%emt 0:00:24]} 9. dxc5 {[%emt 0:01:23]} Bxc5 {[%emt 0:00:06]} 10. Bg5 {[%emt 0:00:02]} Be7 {[%emt 0:00:13]} 11. Nd4 {[%emt 0:00:29]} O-O {[%emt 0:00:06]} 12. Nxe6 {[%emt 0:00:27]} fxe6 {[%emt 0:00:02]} 13. Qb3 {[%emt 0:00:48]} Qb6 {[%emt 0:00:26]} 14. Qxb6 {[%emt 0:00:57]} axb6 {[%emt 0:00:02]} 15. Rfd1 {[%emt 0:00:00]} Bc5 {[%emt 0:00:15]} 16. Bxf6 {[%emt 0:02:13]} Rxf6 {[%emt 0:00:15]} 17. e3 {[%emt 0:00:19]} Ne5 {[%emt 0:00:35]} 18. Rd2 {[%emt 0:02:21]} Nc4 {[%emt 0:00:26]} 19. Re2 {[%emt 0:00:32]} Ne5 {[%emt 0:01:31]} 20. Rd1 {[%emt 0:00:51]} Raf8 {[%emt 0:00:39]} 21. Rdd2 {[%emt 0:00:47]} Bb4 {[%emt 0:00:37]} 22. Rd1 {[%emt 0:01:18]} Rc8 {[%emt 0:00:44]} 23. Nb1 {[%emt 0:01:21]} Nd3 {[%emt 0:01:37]} 24. a3 {[%emt 0:00:49]} Nc1 {[%emt 0:00:10]} 25. axb4 {[%emt 0:00:37]} Nxe2+ 26. Kf1 Rc2 {[%emt 0:00:25]} 27. f4 {[%emt 0:02:11]} Nc1 {[%emt 0:02:23]} 28. Nc3 {[%emt 0:00:03]} Kf8 {[%emt 0:00:34]} 29. e4 {[%emt 0:00:10]} g5 {[%emt 0:00:37]} 30. exd5 {[%emt 0:00:29]} gxf4 {[%emt 0:00:27]} 31. Ne4 {[%emt 0:00:01]} f3 {[%emt 0:01:25]} 32. Nxf6 {[%emt 0:00:23]} fxg2+ 33. Kg1 Ne2+ {[%emt 0:00:14]} 34. Kxg2 {[%emt 0:00:17]} Nc3+ {[%emt 0:00:03]} 0-1

[Event "RUS-chT Rapid Men 2018"]
[Site "Sochi"]
[Date "2018.10.09"]
[Round "8"]
[White "Rudakov, Sergey S."]
[Black "Riazhskih, Vitaly"]
[Result "1/2-1/2"]
[ECO "B42"]
[WhiteElo "1733"]
[BlackElo "2165"]
[Annotator "NA"]
[PlyCount "112"]
[EventDate "2018.10.05"]
[EventType "swiss"]
[EventCountry "RUS"]
[SourceTitle "playchess.com"]
[Source "ChessBase"]
[SourceQuality "1"]
[TimeControl "900+10"]

1. e4 {[%emt 0:00:00]} c5 {[%emt 0:00:00]} 2. Nf3 {[%emt 0:00:00]} e6 {[%emt 0:00:00]} 3. d4 {[%emt 0:00:01]} cxd4 {[%emt 0:00:00]} 4. Nxd4 {[%emt 0:00:02]} a6 {[%emt 0:00:00]} 5. Bd3 {[%emt 0:00:05]} Nf6 {[%emt 0:00:00]} 6. O-O {[%emt 0:00:07]} d6 {[%emt 0:00:07]} 7. Be3 {[%emt 0:00:04]} Nbd7 {[%emt 0:00:05]} 8. f4 {[%emt 0:00:10]} g6 {[%emt 0:00:18]} 9. Nd2 {[%emt 0:00:05]} Bg7 {[%emt 0:00:02]} 10. Qe2 {[%emt 0:01:30]} O-O {[%emt 0:00:03]} 11. h3 {[%emt 0:01:16]} Re8 {[%emt 0:00:30]} 12. Qf2 {[%emt 0:00:25]} Qc7 {[%emt 0:01:13]} 13. Qf3 {[%emt 0:03:10]} b5 {[%emt 0:02:15]} 14. Rae1 {[%emt 0:01:56]} Bb7 {[%emt 0:00:04]} 15. Qg3 {[%emt 0:01:00]} Rac8 {[%emt 0:01:42]} 16. f5 {[%emt 0:00:32]} d5 {[%emt 0:01:44]} 17. Qxc7 {[%emt 0:00:45]} Rxc7 {[%emt 0:00:01]} 18. fxe6 {[%emt 0:00:41]} fxe6 {[%emt 0:00:05]} 19. exd5 {[%emt 0:00:37]} Nxd5 {[%emt 0:00:08]} 20. Bf2 {[%emt 0:00:01]} Nc5 {[%emt 0:00:48]} 21. N2b3 {[%emt 0:01:06]} Nxd3 {[%emt 0:00:04]} 22. cxd3 {[%emt 0:00:01]} e5 {[%emt 0:00:08]} 23. Nf3 {[%emt 0:00:15]} Nf4 {[%emt 0:00:36]} 24. Re3 {[%emt 0:00:50]} Rc2 {[%emt 0:00:25]} 25. Rb1 {[%emt 0:00:57]} Rd8 {[%emt 0:01:17]} 26. Ne1 {[%emt 0:00:02]} Rcc8 {[%emt 0:01:30]} 27. Rc1 {[%emt 0:00:31]} Bd5 {[%emt 0:00:07]} 28. Rxc8 {[%emt 0:00:49]} Rxc8 {[%emt 0:00:02]} 29. Nf3 {[%emt 0:00:25]} Rc2 {[%emt 0:00:13]} 30. d4 {[%emt 0:00:37]} e4 {[%emt 0:00:40]} 31. Ne5 {[%emt 0:00:48]} Rxb2 {[%emt 0:00:44]} 32. Kf1 {[%emt 0:01:19]} Rxa2 {[%emt 0:00:17]} 33. Nc5 {[%emt 0:00:10]} Bxe5 {[%emt 0:01:38]} 34. dxe5 {[%emt 0:00:02]} Ra1+ {[%emt 0:00:10]} 35. Be1 {[%emt 0:00:06]} Bc4+ {[%emt 0:00:32]} 36. Kf2 {[%emt 0:00:08]} Ra2+ {[%emt 0:00:31]} 37. Kg3 {[%emt 0:00:07]} g5 {[%emt 0:00:21]} 38. Kg4 {[%emt 0:00:04]} Rxg2+ {[%emt 0:00:51]} 39. Kf5 {[%emt 0:00:02]} Kf7 {[%emt 0:00:17]} 40. Nxa6 {[%emt 0:00:26]} Re2 {[%emt 0:01:39]} 41. Rxe2 {[%emt 0:00:13]} Bxe2 {[%emt 0:00:02]} 42. h4 {[%emt 0:00:08]} Ng2 {[%emt 0:00:08]} 43. e6+ {[%emt 0:00:06]} Ke8 {[%emt 0:00:07]} 44. Kf6 {[%emt 0:00:08]} Bh5 {[%emt 0:00:08]} 45. Nc7+ {[%emt 0:00:22]} Kd8 {[%emt 0:00:03]} 46. Ba5 {[%emt 0:00:05]} gxh4 {[%emt 0:00:14]} 47. Nxb5+ {[%emt 0:00:06]} Ke8 {[%emt 0:00:17]} 48. Nd6+ {[%emt 0:00:01]} Kf8 {[%emt 0:00:00]} 49. Nxe4 {[%emt 0:00:06]} h3 {[%emt 0:00:09]} 50. Bc7 {[%emt 0:00:23]} Ne3 {[%emt 0:00:04]} 51. Bd6+ {[%emt 0:00:14]} Ke8 {[%emt 0:00:05]} 52. Kg5 {[%emt 0:00:08]} Bg6 {[%emt 0:00:15]} 53. Nf6+ {[%emt 0:00:02]} Kd8 {[%emt 0:00:01]} 54. e7+ {[%emt 0:00:21]} Kc8 {[%emt 0:00:01]} 55. Nxh7 {[%emt 0:00:09]} Be8 {[%emt 0:00:38]} 56. Nf6 {[%emt 0:00:10]} Ba4 {[%emt 0:00:06]} 1/2-1/2

[Event "RUS-chT Rapid Men 2018"]
[Site "Sochi"]
[Date "2018.10.09"]
[Round "9"]
[White "Antipov, Mikhail Al."]
[Black "Sharafiev, Azat"]
[Result "1-0"]
[ECO "B40"]
[WhiteElo "2593"]
[BlackElo "2432"]
[Annotator "ChessBase"]
[PlyCount "65"]
[EventDate "2018.10.05"]
[EventType "swiss"]
[EventCountry "RUS"]
[SourceTitle "playchess.com"]
[Source "ChessBase"]
[SourceQuality "1"]
[TimeControl "900+10"]

1. e4 c5 {[%emt 0:00:00]} 2. Nf3 {[%emt 0:00:00]} e6 {[%emt 0:00:00]} 3. b3 {[%emt 0:00:00]} b6 {[%emt 0:00:11]} 4. Bb2 {[%emt 0:00:00]} Bb7 {[%emt 0:00:05]} 5. Nc3 {[%emt 0:00:00]} Nc6 {[%emt 0:00:28]} 6. Qe2 {[%emt 0:00:00]} d6 {[%emt 0:00:39]} 7. O-O-O {[%emt 0:00:02]} e5 {[%emt 0:00:24]} 8. g4 {[%emt 0:00:01]} Nge7 {[%emt 0:00:23]} 9. Nd5 {[%emt 0:03:25]} Qd7 {[%emt 0:02:17]} 10. c4 {[%emt 0:00:27]} O-O-O {[%emt 0:00:40]} 11. h4 {[%emt 0:00:03]} Nxd5 {[%emt 0:00:24]} 12. exd5 {[%emt 0:00:24]} Nd4 {[%emt 0:00:21]} 13. Nxd4 {[%emt 0:00:08]} cxd4 {[%emt 0:02:17]} 14. f4 {[%emt 0:00:01]} Qc7 {[%emt 0:01:56]} 15. Kb1 {[%emt 0:00:08]} Be7 {[%emt 0:00:58]} 16. Re1 {[%emt 0:01:27]} f6 {[%emt 0:04:29]} 17. g5 {[%emt 0:00:02]} Rhe8 {[%emt 0:00:36]} 18. Bh3+ {[%emt 0:00:04]} Kb8 {[%emt 0:00:01]} 19. Be6 {[%emt 0:00:03]} Bc8 {[%emt 0:00:17]} 20. f5 {[%emt 0:00:11]} g6 {[%emt 0:00:45]} 21. gxf6 {[%emt 0:00:51]} Bxf6 {[%emt 0:00:02]} 22. Bxc8 {[%emt 0:00:01]} Qxc8 {[%emt 0:00:17]} 23. fxg6 {[%emt 0:00:01]} hxg6 {[%emt 0:00:20]} 24. Ref1 {[%emt 0:00:01]} Be7 {[%emt 0:00:21]} 25. Qe4 {[%emt 0:00:12]} Rf8 {[%emt 0:00:30]} 26. Qxg6 {[%emt 0:01:05]} Rxf1+ {[%emt 0:00:18]} 27. Rxf1 {[%emt 0:00:01]} Bxh4 {[%emt 0:00:11]} 28. Ba3 {[%emt 0:00:01]} Be7 {[%emt 0:00:10]} 29. Rf7 {[%emt 0:00:02]} Qd7 {[%emt 0:00:15]} 30. Qe6 {[%emt 0:00:40]} Qxe6 {[%emt 0:00:13]} 31. dxe6 {[%emt 0:00:01]} Bg5 {[%emt 0:00:05]} 32. e7 {[%emt 0:00:02]} Re8 {[%emt 0:00:05]} 33. Rf8 {[%emt 0:00:02]} 1-0

[Event "RUS-chT Rapid Men 2018"]
[Site "Sochi"]
[Date "2018.10.09"]
[Round "9"]
[White "Potapov, Pavel"]
[Black "Sychev, Klementy"]
[Result "1/2-1/2"]
[ECO "C00"]
[WhiteElo "2515"]
[BlackElo "2534"]
[Annotator "ChessBase"]
[PlyCount "56"]
[EventDate "2018.10.05"]
[EventType "swiss"]
[EventCountry "RUS"]
[SourceTitle "playchess.com"]
[Source "ChessBase"]
[SourceQuality "1"]
[TimeControl "900+10"]

1. e4 {[%emt 0:00:00]} e6 {[%emt 0:00:00]} 2. d4 {[%emt 0:00:04]} d5 {[%emt 0:00:00]} 3. Bd3 {[%emt 0:00:06]} dxe4 {[%emt 0:00:50]} 4. Bxe4 {[%emt 0:00:01]} Nf6 {[%emt 0:00:01]} 5. Bf3 {[%emt 0:00:02]} c5 {[%emt 0:00:01]} 6. Ne2 {[%emt 0:00:02]} Nc6 {[%emt 0:00:02]} 7. Be3 {[%emt 0:00:20]} cxd4 {[%emt 0:00:02]} 8. Nxd4 {[%emt 0:00:04]} Ne5 {[%emt 0:00:02]} 9. Nc3 {[%emt 0:00:12]} a6 {[%emt 0:00:00]} 10. Qe2 {[%emt 0:00:06]} Nxf3+ {[%emt 0:00:02]} 11. Nxf3 {[%emt 0:00:05]} Be7 {[%emt 0:00:39]} 12. Bd4 {[%emt 0:01:23]} O-O {[%emt 0:00:18]} 13. O-O-O {[%emt 0:00:03]} Qc7 {[%emt 0:00:06]} 14. Be5 {[%emt 0:02:17]} Qa5 {[%emt 0:03:03]} 15. Bd6 {[%emt 0:01:10]} Bxd6 {[%emt 0:00:06]} 16. Rxd6 {[%emt 0:00:02]} Bd7 {[%emt 0:00:23]} 17. Ne5 {[%emt 0:00:30]} Bb5 {[%emt 0:00:45]} 18. Qe3 {[%emt 0:00:16]} Rac8 {[%emt 0:00:45]} 19. Rhd1 {[%emt 0:01:22]} Bc4 {[%emt 0:00:12]} 20. Nxc4 {[%emt 0:00:54]} Rxc4 {[%emt 0:00:02]} 21. Kb1 {[%emt 0:01:56]} Rfc8 {[%emt 0:02:00]} 22. Qb6 {[%emt 0:00:30]} Qxb6 {[%emt 0:00:02]} 23. Rxb6 {[%emt 0:00:02]} R4c7 {[%emt 0:00:02]} 24. f3 {[%emt 0:00:37]} Kf8 {[%emt 0:00:04]} 25. a4 {[%emt 0:00:15]} Ke7 {[%emt 0:00:22]} 26. Rd2 {[%emt 0:00:06]} Nd7 {[%emt 0:00:21]} 27. Rb4 {[%emt 0:00:10]} Nf6 {[%emt 0:01:25]} 28. Rb6 {[%emt 0:00:21]} Nd7 {[%emt 0:01:23]} 1/2-1/2

[Event "RUS-chT Rapid Men 2018"]
[Site "Sochi"]
[Date "2018.10.09"]
[Round "9"]
[White "Khanin, Semen"]
[Black "Taysayev, Timur"]
[Result "1-0"]
[ECO "B63"]
[WhiteElo "2510"]
[BlackElo "2225"]
[Annotator "ChessBase"]
[PlyCount "41"]
[EventDate "2018.10.05"]
[EventType "swiss"]
[EventCountry "RUS"]
[SourceTitle "playchess.com"]
[Source "ChessBase"]
[SourceQuality "1"]
[TimeControl "900+10"]

1. e4 {[%emt 0:00:00]} c5 {[%emt 0:00:00]} 2. Nf3 {[%emt 0:00:00]} d6 {[%emt 0:00:00]} 3. d4 {[%emt 0:00:00]} cxd4 {[%emt 0:00:00]} 4. Nxd4 {[%emt 0:00:00]} Nf6 {[%emt 0:00:00]} 5. Nc3 {[%emt 0:00:00]} Nc6 {[%emt 0:00:00]} 6. Bg5 {[%emt 0:00:00]} e6 {[%emt 0:00:01]} 7. Qd2 {[%emt 0:00:00]} Be7 {[%emt 0:00:01]} 8. O-O-O {[%emt 0:00:12]} Nxd4 {[%emt 0:00:02]} 9. Qxd4 {[%emt 0:00:02]} O-O {[%emt 0:00:02]} 10. f3 {[%emt 0:00:18]} a6 {[%emt 0:00:30]} 11. h4 {[%emt 0:00:12]} b5 {[%emt 0:00:05]} 12. a3 {[%emt 0:00:11]} e5 {[%emt 0:01:36]} 13. Qd2 {[%emt 0:00:05]} Be6 {[%emt 0:00:03]} 14. g4 {[%emt 0:01:21]} Qa5 {[%emt 0:03:02]} 15. Kb1 {[%emt 0:00:34]} b4 {[%emt 0:01:06]} 16. axb4 {[%emt 0:00:11]} Qxb4 {[%emt 0:00:02]} 17. Nd5 {[%emt 0:02:07]} Qb7 {[%emt 0:01:32]} 18. Nxe7+ {[%emt 0:00:45]} Qxe7 {[%emt 0:00:02]} 19. Qxd6 {[%emt 0:00:14]} Rfd8 {[%emt 0:00:13]} 20. Qxe7 {[%emt 0:00:03]} Rxd1+ {[%emt 0:00:07]} 21. Bc1 {[%emt 0:00:02]} 1-0

[Event "RUS-chT Rapid Men 2018"]
[Site "Sochi"]
[Date "2018.10.09"]
[Round "9"]
[White "Belyakov, Bogdan"]
[Black "Kozionov, Kirill"]
[Result "1/2-1/2"]
[ECO "B22"]
[WhiteElo "2458"]
[BlackElo "2458"]
[Annotator "ChessBase"]
[PlyCount "73"]
[EventDate "2018.10.05"]
[EventType "swiss"]
[EventCountry "RUS"]
[SourceTitle "playchess.com"]
[Source "ChessBase"]
[SourceQuality "1"]
[TimeControl "900+10"]

1. e4 {[%emt 0:00:00]} c5 {[%emt 0:00:00]} 2. c3 {[%emt 0:00:00]} d5 {[%emt 0:00:00]} 3. exd5 {[%emt 0:00:00]} Qxd5 {[%emt 0:00:00]} 4. d4 {[%emt 0:00:00]} Nc6 {[%emt 0:00:00]} 5. Nf3 {[%emt 0:00:00]} Bf5 {[%emt 0:00:02]} 6. Be2 {[%emt 0:00:02]} cxd4 {[%emt 0:00:03]} 7. Nxd4 {[%emt 0:00:02]} Nxd4 {[%emt 0:00:36]} 8. cxd4 {[%emt 0:00:02]} a6 {[%emt 0:09:18]} 9. O-O {[%emt 0:00:10]} Nf6 {[%emt 0:00:31]} 10. Nc3 {[%emt 0:00:38]} Qd7 {[%emt 0:01:27]} 11. Na4 {[%emt 0:05:29]} Rd8 {[%emt 0:00:30]} 12. Be3 {[%emt 0:00:44]} e6 {[%emt 0:00:19]} 13. Rc1 {[%emt 0:00:30]} Nd5 {[%emt 0:00:33]} 14. Qb3 {[%emt 0:00:29]} Bd6 {[%emt 0:01:11]} 15. Nc5 {[%emt 0:01:42]} Bxc5 {[%emt 0:00:08]} 16. Rxc5 {[%emt 0:00:02]} O-O {[%emt 0:00:23]} 17. Bf3 {[%emt 0:00:02]} Rc8 {[%emt 0:00:31]} 18. Rfc1 {[%emt 0:00:52]} h6 {[%emt 0:00:25]} 19. h3 {[%emt 0:01:19]} Rfd8 {[%emt 0:00:12]} 20. a4 {[%emt 0:00:54]} b6 {[%emt 0:00:55]} 21. Rxc8 {[%emt 0:00:16]} Rxc8 {[%emt 0:00:01]} 22. Rxc8+ {[%emt 0:00:01]} Qxc8 {[%emt 0:00:01]} 23. Bxd5 {[%emt 0:00:03]} exd5 {[%emt 0:00:01]} 24. Qxb6 {[%emt 0:00:04]} Bc2 {[%emt 0:01:08]} 25. b3 {[%emt 0:00:17]} Bd1 {[%emt 0:00:40]} 26. Kh2 {[%emt 0:00:22]} Bc2 {[%emt 0:00:02]} 27. Bf4 {[%emt 0:00:42]} Kh7 {[%emt 0:00:12]} 28. Be5 {[%emt 0:00:07]} f6 {[%emt 0:00:12]} 29. Bf4 {[%emt 0:00:18]} Bd1 {[%emt 0:00:09]} 30. Be3 {[%emt 0:00:42]} Bc2 {[%emt 0:00:01]} 31. Qb4 {[%emt 0:00:34]} Bd1 {[%emt 0:00:11]} 32. Kg1 {[%emt 0:00:03]} Qc2 {[%emt 0:00:10]} 33. Qb6 {[%emt 0:01:21]} Qxb3 {[%emt 0:00:05]} 34. Qxa6 {[%emt 0:00:01]} Qxa4 {[%emt 0:00:03]} 35. Qd3+ {[%emt 0:00:02]} Kh8 {[%emt 0:00:14]} 36. Qf5 {[%emt 0:00:32]} Qc6 {[%emt 0:00:14]} 37. Qf4 {[%emt 0:00:22]} 1/2-1/2

[Event "RUS-chT Rapid Men 2018"]
[Site "Sochi"]
[Date "2018.10.09"]
[Round "9"]
[White "Vastrukhin, Oleg"]
[Black "Zvjaginsev, Vadim"]
[Result "1/2-1/2"]
[ECO "A08"]
[WhiteElo "2413"]
[BlackElo "2644"]
[Annotator "RC"]
[PlyCount "44"]
[EventDate "2018.10.05"]
[EventType "swiss"]
[EventCountry "RUS"]
[SourceTitle "playchess.com"]
[Source "ChessBase"]
[SourceQuality "1"]
[TimeControl "900+10"]

1. Nf3 {[%emt 0:00:00]} d5 {[%emt 0:00:00]} 2. g3 {[%emt 0:00:00]} c5 {[%emt 0:00:00]} 3. Bg2 {[%emt 0:00:00]} Nc6 {[%emt 0:00:00]} 4. d4 {[%emt 0:00:03]} Nf6 {[%emt 0:00:00]} 5. O-O {[%emt 0:00:03]} e6 {[%emt 0:00:00]} 6. c4 {[%emt 0:01:16]} dxc4 {[%emt 0:00:02]} 7. Qa4 {[%emt 0:00:01]} Bd7 {[%emt 0:00:25]} 8. dxc5 {[%emt 0:00:22]} Bxc5 {[%emt 0:00:35]} 9. Qxc4 {[%emt 0:00:04]} Be7 {[%emt 0:01:09]} 10. Nc3 {[%emt 0:00:43]} Rc8 {[%emt 0:00:15]} 11. Rd1 {[%emt 0:00:53]} Qa5 {[%emt 0:00:51]} 12. Qb5 {[%emt 0:01:48]} Qxb5 {[%emt 0:01:35]} 13. Nxb5 {[%emt 0:00:02]} Nd5 {[%emt 0:02:15]} 14. Nfd4 {[%emt 0:02:10]} Nxd4 {[%emt 0:01:02]} 15. Nxd4 {[%emt 0:00:02]} O-O {[%emt 0:01:16]} 16. Bxd5 {[%emt 0:01:45]} exd5 {[%emt 0:00:03]} 17. Bd2 {[%emt 0:00:00]} Ba4 {[%emt 0:01:37]} 18. Rdc1 {[%emt 0:00:11]} Bf6 {[%emt 0:00:17]} 19. e3 {[%emt 0:00:47]} Bxd4 {[%emt 0:00:40]} 20. exd4 {[%emt 0:00:01]} f6 {[%emt 0:00:24]} 21. Rxc8 {[%emt 0:00:04]} Rxc8 {[%emt 0:00:01]} 22. Rc1 {[%emt 0:00:01]} Rxc1+ 1/2-1/2

[Event "RUS-chT Rapid Men 2018"]
[Site "Sochi"]
[Date "2018.10.09"]
[Round "9"]
[White "Apryshko, Gleb"]
[Black "Savitskiy, Sergey"]
[Result "1-0"]
[ECO "A01"]
[WhiteElo "2399"]
[BlackElo "2413"]
[Annotator "NA"]
[PlyCount "77"]
[EventDate "2018.10.05"]
[EventType "swiss"]
[EventCountry "RUS"]
[SourceTitle "playchess.com"]
[Source "ChessBase"]
[SourceQuality "1"]
[TimeControl "900+10"]

1. b3 {[%emt 0:00:00]} e5 {[%emt 0:00:00]} 2. Bb2 {[%emt 0:00:00]} Nc6 {[%emt 0:00:01]} 3. e3 {[%emt 0:00:00]} Nf6 {[%emt 0:00:00]} 4. g3 {[%emt 0:00:01]} d5 {[%emt 0:00:06]} 5. Bg2 {[%emt 0:00:03]} Bg4 {[%emt 0:00:26]} 6. Ne2 {[%emt 0:00:03]} Qd7 {[%emt 0:00:08]} 7. h3 {[%emt 0:00:01]} Be6 {[%emt 0:01:13]} 8. d3 {[%emt 0:00:17]} Bd6 {[%emt 0:00:16]} 9. Nd2 {[%emt 0:00:13]} O-O {[%emt 0:00:02]} 10. g4 {[%emt 0:00:37]} h6 {[%emt 0:00:43]} 11. c4 {[%emt 0:01:06]} Qe7 {[%emt 0:04:31]} 12. a3 {[%emt 0:00:07]} a5 {[%emt 0:00:33]} 13. Ng3 {[%emt 0:00:30]} g6 {[%emt 0:00:59]} 14. Qc2 {[%emt 0:07:29]} Rad8 {[%emt 0:00:22]} 15. Nf3 {[%emt 0:02:25]} Nd7 {[%emt 0:01:13]} 16. O-O {[%emt 0:01:47]} Rfe8 {[%emt 0:04:43]} 17. Qc3 {[%emt 0:00:21]} d4 {[%emt 0:00:18]} 18. exd4 {[%emt 0:00:06]} exd4 {[%emt 0:00:14]} 19. Qd2 {[%emt 0:00:05]} Nc5 {[%emt 0:00:44]} 20. b4 {[%emt 0:00:20]} axb4 {[%emt 0:00:53]} 21. axb4 {[%emt 0:00:01]} Nb3 {[%emt 0:00:01]} 22. Qxh6 {[%emt 0:00:01]} Qf8 {[%emt 0:00:01]} 23. Qxf8+ {[%emt 0:00:06]} Bxf8 24. Ra3 b5 {[%emt 0:01:06]} 25. Ng5 {[%emt 0:00:47]} Nxb4 {[%emt 0:00:19]} 26. Nxe6 {[%emt 0:00:07]} Rxe6 {[%emt 0:00:07]} 27. Rxb3 {[%emt 0:00:01]} bxc4 {[%emt 0:00:03]} 28. dxc4 {[%emt 0:00:01]} c5 {[%emt 0:00:13]} 29. Ba3 {[%emt 0:00:12]} Re5 {[%emt 0:00:22]} 30. Bxb4 {[%emt 0:00:06]} cxb4 {[%emt 0:00:02]} 31. Bd5 {[%emt 0:00:00]} Kg7 {[%emt 0:00:12]} 32. Ra1 {[%emt 0:00:17]} Rd7 {[%emt 0:00:03]} 33. Kf1 {[%emt 0:00:33]} Kh7 {[%emt 0:00:14]} 34. Ra8 {[%emt 0:00:57]} Be7 {[%emt 0:00:13]} 35. f4 {[%emt 0:00:04]} Re3 {[%emt 0:00:06]} 36. Rxe3 {[%emt 0:00:01]} dxe3 {[%emt 0:00:02]} 37. Ke2 {[%emt 0:00:35]} Bc5 {[%emt 0:00:20]} 38. Ne4 {[%emt 0:00:13]} Bd4 {[%emt 0:00:02]} 39. Kd3 {[%emt 0:00:08]} 1-0

[Event "RUS-chT Rapid Men 2018"]
[Site "Sochi"]
[Date "2018.10.09"]
[Round "9"]
[White "Tenikashvili, Georgij"]
[Black "Maletin, Pavel"]
[Result "0-1"]
[ECO "E10"]
[WhiteElo "2361"]
[BlackElo "2586"]
[Annotator "ChessBase"]
[PlyCount "68"]
[EventDate "2018.10.05"]
[EventType "swiss"]
[EventCountry "RUS"]
[SourceTitle "playchess.com"]
[Source "ChessBase"]
[SourceQuality "1"]
[TimeControl "900+10"]

1. d4 {[%emt 0:00:00]} Nf6 {[%emt 0:00:00]} 2. c4 {[%emt 0:00:00]} e6 {[%emt 0:00:00]} 3. Nf3 {[%emt 0:00:00]} d5 {[%emt 0:00:00]} 4. cxd5 {[%emt 0:00:21]} exd5 {[%emt 0:00:00]} 5. Nc3 {[%emt 0:00:02]} c6 {[%emt 0:00:03]} 6. Bg5 {[%emt 0:00:17]} Be7 {[%emt 0:00:12]} 7. Qc2 {[%emt 0:00:08]} g6 {[%emt 0:00:05]} 8. e3 {[%emt 0:00:08]} Bf5 {[%emt 0:00:03]} 9. Bd3 {[%emt 0:00:02]} Bxd3 {[%emt 0:00:02]} 10. Qxd3 {[%emt 0:00:02]} Nbd7 {[%emt 0:00:02]} 11. O-O {[%emt 0:00:27]} O-O {[%emt 0:00:03]} 12. a3 {[%emt 0:00:29]} a5 {[%emt 0:00:01]} 13. Rac1 {[%emt 0:00:09]} Re8 {[%emt 0:00:13]} 14. h3 {[%emt 0:00:07]} Ne4 {[%emt 0:00:05]} 15. Bf4 {[%emt 0:00:04]} Bd6 {[%emt 0:00:08]} 16. Bxd6 {[%emt 0:01:16]} Nxd6 {[%emt 0:00:01]} 17. Nd2 {[%emt 0:00:57]} f5 {[%emt 0:02:16]} 18. f4 {[%emt 0:03:23]} a4 {[%emt 0:00:11]} 19. Rc2 {[%emt 0:01:02]} Qe7 {[%emt 0:01:12]} 20. Re1 {[%emt 0:00:09]} g5 {[%emt 0:00:28]} 21. Nf3 {[%emt 0:01:03]} gxf4 {[%emt 0:00:11]} 22. exf4 {[%emt 0:00:04]} Ne4 {[%emt 0:00:02]} 23. Ne5 {[%emt 0:00:34]} Kh8 {[%emt 0:00:21]} 24. Qf3 {[%emt 0:02:12]} Rg8 {[%emt 0:00:14]} 25. Qh5 {[%emt 0:00:16]} Raf8 {[%emt 0:01:06]} 26. Nxe4 {[%emt 0:02:22]} fxe4 {[%emt 0:00:07]} 27. Rf2 {[%emt 0:00:14]} Nxe5 {[%emt 0:00:36]} 28. dxe5 {[%emt 0:00:41]} Rg3 {[%emt 0:00:49]} 29. Qh6 {[%emt 0:00:33]} Rfg8 {[%emt 0:00:20]} 30. f5 {[%emt 0:01:28]} Qxe5 {[%emt 0:00:10]} 31. f6 {[%emt 0:00:01]} e3 {[%emt 0:00:08]} 32. Rfe2 {[%emt 0:01:15]} Qe4 {[%emt 0:00:12]} 33. f7 {[%emt 0:00:25]} Rxg2+ {[%emt 0:00:02]} 34. Kf1 {[%emt 0:00:10]} Rg1# {[%emt 0:00:03]} 0-1